Cogmind - Beta 15 @@@ ROGUE MODE // 2025.07.29 @ 19:16:34 Player: H3-RMN Result: Destroyed by 7V-DSL(R) with Subdweller Beam Cannon Performance ------------- Evolutions (0) 0 Regions Visited (3) 600 Robots Destroyed (39) 195 Value Destroyed (910) 910 Prototype IDs (2) 40 Alien Tech Used (0) 0 Bonus (0) 0 TOTAL SCORE: 1745 Bonus ------- None Cogmind --------- Core Integrity 0/250 Matter 273/300 Energy 136/200 System Corruption 0% Temperature Hot (278) Movement Treading (560) Ox4 Location -10/Subcaves Parts ------- > --- POWER (1) -------- Subdweller Power Source > --- PROPULSION (2) --- Spiked Treads Subdweller Monowheel > --- UTILITY (2) ------ Huge Storage Unit Makeshift Light Armor Plating > --- WEAPON (2) ------- Subdweller Beam Cannon Battle Rifle > --- INVENTORY (25) --- Light Treads Light Treads Wheel Large Matter Pod (150) Seismic Detector Light Armor Plating Improved Light Armor Plating Scrap Shield Hacking Suite Hacking Suite Improved Trap Extractor (3/6 Explosive) EM Pulse Gun EM Pulse Gun Heavy Riot Gun Beamcaster Subdweller Beam Cannon Rocket Launcher Subdweller Shrapnel Launcher Dirty Datajack (20) Datajack Ripper EMP Trap Peak State ------------ > --- POWER ------------ Subdweller Power Source > --- PROPULSION ------- Spiked Treads Subdweller Monowheel > --- UTILITY ---------- Huge Storage Unit Makeshift Light Armor Plating > --- WEAPON ----------- Subdweller Beam Cannon Bore Cannon > --- INVENTORY -------- Light Treads Light Treads Wheel Large Matter Pod Seismic Detector Light Armor Plating Improved Light Armor Plating Scrap Shield Hacking Suite Hacking Suite Improved Trap Extractor EM Pulse Gun EM Pulse Gun Heavy Riot Gun Beamcaster Subdweller Beam Cannon Light Assault Rifle Battle Rifle Rocket Launcher Subdweller Shrapnel Launcher Dirty Datajack Datajack Ripper EMP Trap [Rating: 23] Favorites ----------- Power Improved Ion Engine Engine Improved Ion Engine Propulsion Wheel Treads Light Treads Wheel Wheel Utility Huge Storage Unit Device Seismic Detector Storage Huge Storage Unit Protection Light Armor Plating Weapon Medium Laser Energy Gun Medium Laser Energy Cannon Subdweller Beam Cannon Ballistic Gun Light Assault Rifle Ballistic Cannon Bore Cannon Special Melee Weapon Datajack Build | -11 -10 -10 -10 ------- Run | Yrd Mat Min Sub Slots Evolved . | . . . . Power . | . . . . Propulsion . | . . . . Utility . | . . . . Weapon . | . . . . Parts Attached 29 | 7 4 8 10 Power 4 | 1 1 1 1 Engine 4 | 1 1 1 1 Core . | . . . . Reactor . | . . . . Propulsion 6 | 2 . 1 3 Treads 3 | 1 . 1 1 Leg . | . . . . Wheel 3 | 1 . . 2 Hover . | . . . . Flight . | . . . . Utility 6 | 2 2 1 1 Device 2 | 1 . 1 . Storage 2 | 1 1 . . Processor . | . . . . Hackware . | . . . . Protection 2 | . 1 . 1 Artifact . | . . . . Weapon 13 | 2 1 5 5 Energy Gun 5 | 2 1 2 . Energy Cannon 3 | . . . 3 Ballistic Gun 3 | . . 1 2 Ballistic Cannon 1 | . . 1 . Launcher . | . . . . Special Weapon . | . . . . Impact Weapon . | . . . . Slashing Weapon . | . . . . Piercing Weapon . | . . . . Special Melee Weapon 1 | . . 1 . Unidentified Prototypes . | . . . . Parts Lost 4 | . . 1 3 Power 1 | . . . 1 Propulsion . | . . . . Utility . | . . . . Weapon 3 | . . 1 2 Highest Loss Streak 2 | . . 1 2 To Critical Strikes . | . . . . Average Backups 17 | 3 8 19 23 Power . | . . . . Propulsion 4 | 1 4 7 3 Utility 5 | . 1 4 7 Weapon 6 | . 1 6 9 Tool/Special . | . . . . Unused Backups 30 | . 3 1 26 Power 1 | . 1 . . Propulsion 8 | . 2 . 6 Utility 8 | . . . 8 Weapon 12 | . . 1 11 Tool/Special 1 | . . . 1 Average Slot Usage (%) 97 | . 100 100 94 Engine 11 | . 14 14 8 Treads 14 | . 14 14 14 Wheel 14 | . 14 14 14 Device 2 | . 7 . . Storage 14 | . 14 14 14 Protection 11 | . 6 13 14 Energy Gun 14 | . 28 18 1 Energy Cannon 5 | . . . 12 Ballistic Gun 1 | . . 3 . Ballistic Cannon 6 | . . 3 13 Peak Build Rating 23 | 7 8 17 23 Average Rating 14 | 5 7 11 21 On Entrance 8 | . 7 8 17 Naked Turns . | . . . . Heaviest Build 108 | 15 92 102 108 Greatest Support 20 | 10 10 10 20 Greatest Overweight (x) 10 | 1 9 10 10 Average Overweight (x) 6 | . 3 9 7 Largest Inventory Capacity 25 | 8 25 25 25 Average Capacity 21 | 7 12 25 25 Most Carried 25 | 7 15 25 25 Average Carried 18 | 3 8 19 24 Final Capacity 25 | 8 25 25 25 Final Carried 25 | 7 15 25 23 Class Distribution -------------------- 100% | Mutant Dominant Class ---------------- Mutant | -10/Materials Mutant | -10/Mines Mutant | -10/Subcaves Resources | -11 -10 -10 -10 ----------- Run | Yrd Mat Min Sub Matter Collected 903 | 270 40 315 278 Remotely . | . . . . Salvage Created 1206 | 128 540 156 382 Parts 77 | 9 39 10 19 Haulers Intercepted 2 | . 2 . . Recyclers Shooed . | . . . . Parts Field Recycled . | . . . . Retrieved Matter . | . . . . Parts Self-Destructed 9 | . . . 9 Prevented . | . . . . Kills | -11 -10 -10 -10 ------- Run | Yrd Mat Min Sub Combat Hostiles Destroyed 27 | . 11 6 10 Guns 12 | . 7 4 1 Cannons 11 | . . 2 9 AOE 4 | . 4 . . Classes Destroyed 10 | 2 7 . 1 Worker 1 | . 1 . . Builder 2 | . 2 . . Tunneler 2 | 2 . . . Hauler 2 | . 2 . . Recycler 2 | 1 1 . . Operator 1 | . 1 . . Watcher 2 | . 2 . . Swarmer 9 | . 6 3 . Grunt 8 | . 5 3 . Subdweller 10 | . . . 10 Best Kill Streak 5 | 3 5 3 2 Combat Bots Only 3 | . 3 3 2 Max Kills in Single Turn 5 | 1 5 1 1 Gunslinging . | . . . . Exploded 3 | . 3 . . Melee . | . . . . Uniques/NPCs Destroyed . | . . . . Combat | -11 -10 -10 -10 -------- Run | Yrd Mat Min Sub Hostile Shots Fired 84 | . 28 18 38 Missed 14 | . 5 5 4 Hits 70 | . 23 13 34 Projectile 70 | . 23 13 34 AOE 2 | . . . 2 Critical Strikes 2 | . . 1 1 Damage Taken 1371 | . 280 149 942 Core 269 | . 85 39 145 Absorbed by Shields . | . . . . Core Remaining (%) 100 | 100 . . . Volleys Fired 87 | 5 34 12 36 Largest 2 | 2 2 2 2 Hottest 128 | 90 90 111 128 Shots Fired 170 | 10 68 24 68 Gun 107 | 10 68 19 10 Cannon 63 | . . 5 58 Launcher . | . . . . Special . | . . . . Kinetic 38 | . . 5 33 Thermal 89 | 5 34 15 35 Explosive . | . . . . Electromagnetic 43 | 5 34 4 . Robot Hit Streak 14 | 7 8 6 14 Robot Miss Streak 4 | . 4 3 4 Penetration Max . | . . . . Secondary Targets 2 | . 2 . . Max Gunslinging Chain 1 | . 1 . . Shots Hit Robots 107 | 7 36 16 48 Core Hits 46 | 4 21 9 12 Critical Kills 6 | . . 2 4 Critical Parts Destroyed 3 | . . 2 1 Critical Strikes 21 | . 1 6 14 Burn 4 | . 1 2 1 Destroy 17 | . . 4 13 Melee Attacks . | . . . . Impact . | . . . . Slashing . | . . . . Piercing . | . . . . Sneak Attacks . | . . . . Combat Hostiles . | . . . . Follow-up Attacks . | . . . . Damage Inflicted 2627 | 88 1157 275 1107 Guns 914 | 88 504 185 137 Cannons 1060 | . . 90 970 Explosions 652 | . 652 . . Melee . | . . . . Ramming 1 | . 1 . . Kinetic 530 | . . 90 440 Thermal 1702 | 38 840 157 667 Explosive . | . . . . Electromagnetic 394 | 50 316 28 . Impact . | . . . . Slashing . | . . . . Piercing . | . . . . Highest Corruption . | . . . . Average Corruption . | . . . . Corruption Purged . | . . . . Corruption Blocked . | . . . . Overload Shots . | . . . . Overflow Damage 170 | . 170 . . Projectiles . | . . . . Explosions 170 | . 170 . . Melee . | . . . . Knockbacks 5 | . . 1 4 Impact . | . . . . Kinetic 5 | . . 1 4 Secondary . | . . . . Self-Inflicted Damage 46 | . 46 . . Shots 3 | . 3 . . Rammed 1 | . 1 . . Targets Rammed 1 | . 1 . . Kicked . | . . . . Crushed . | . . . . Highest Temperature 366 | 60 240 366 295 Average Temperature 81 | 30 78 131 57 Received Heat Transfer 650 | . 72 78 500 Effects 2 | . . 2 . Shutdowns 1 | . . 1 . Damage (minor) 1 | . . 1 . Siege Activations . | . . . . Martial Activations . | . . . . Shielding Activations . | . . . . Robots Disrupted . | . . . . Combat Hostiles . | . . . . Robots Corrupted 1 | . 1 . . Combat Hostiles . | . . . . Parts Fried 1 | . 1 . . Impact Corruptions . | . . . . Robots Melted . | . . . . Combat Hostiles . | . . . . Parts Melted 6 | . 2 3 1 Heat Transferred 2881 | 111 1179 555 1036 Parts Sabotaged . | . . . . Parts Stolen . | . . . . Parts Stripped . | . . . . Power Chain Reactions 2 | . 2 . . Alert | -11 -10 -10 -10 ------- Run | Yrd Mat Min Sub Maximum Alert Level . | . . . . Low Security (%) 100 | 100 100 100 . Level 1 . | . . . . Level 2 . | . . . . Level 3 . | . . . . Level 4 . | . . . . Level 5 . | . . . . High Security . | . . . . Max Security . | . . . . Peak Influence 182 | 10 182 70 . Initial 37 | . . 37 . Average 34 | 1 69 6 . Influence Increases 623 | 15 455 153 . Destroy 0b10 Robot/C 340 | . 220 120 . Destroy 0b10 Robot/NC 60 | 15 45 . . Destroy Leader 88 | . 58 30 . Successful Hack 36 | . 36 . . Select Force Hacks 30 | . 30 . . Disable Machine 30 | . 30 . . Destroy Structure 39 | . 36 3 . Influence Decreases 623 | 15 358 209 41 Entered New Map 82 | . . 60 22 Time Decay 541 | 15 358 149 19 Squads Dispatched 2 | . 2 . . Investigation 1 | . 1 . . Extermination . | . . . . Reinforcement 1 | . 1 . . Assault . | . . . . Garrison . | . . . . Intercept . | . . . . Searches Triggered . | . . . . Construction Impeded . | . . . . Haulers Reinforced . | . . . . Active Scanning Responses . | . . . . Cargo Convoy Interrupts . | . . . . Stealth | -11 -10 -10 -10 --------- Run | Yrd Mat Min Sub Distress Signals 2 | . 2 . . Communications Jammed . | . . . . Distress Signals . | . . . . Times Spotted 41 | . 20 9 12 Peak Tracking Total 5 | . 5 3 2 Tactical Retreats . | . . . . Traps | -11 -10 -10 -10 ------- Run | Yrd Mat Min Sub Traps Triggered . | . . . . Indirectly . | . . . . Trap Hack Attempts 26 | . . 26 . Triggered . | . . . . Disarmed . | . . . . Reprogrammed 4 | . . 4 . Reused . | . . . . Traps Extracted 4 | . . 4 . Installed . | . . . . Triggered . | . . . . Most Traps Carried 4 | . . 4 4 Machines | -11 -10 -10 -10 ---------- Run | Yrd Mat Min Sub Machines Disabled 2 | . 2 . . Max in Single Turn 2 | . 2 . . Machines Repaired . | . . . . Machines Dismantled . | . . . . Machines Sabotaged . | . . . . Overloaded Fab Kills . | . . . . Hacking | -11 -10 -10 -10 --------- Run | Yrd Mat Min Sub Machines Accessed 10 | . 8 1 1 Terminals 6 | . 6 . . Fabricators . | . . . . Repair Stations . | . . . . Recycling Units 2 | . 2 . . Scanalyzers . | . . . . Garrison Access . | . . . . Total Hacks 31 | . 25 1 5 Successful 20 | . 14 1 5 Failed 11 | . 11 . . Catastrophic . | . . . . Database Lockouts . | . . . . Manual 18 | . 18 . . Terminals 19 | . 19 . . Fabricators . | . . . . Repair Stations . | . . . . Recycling Units 6 | . 6 . . Scanalyzers . | . . . . Garrison Access . | . . . . Terminal Hacks 10 | . 4 1 5 Record 5 | . . . 5 Part Schematic 1 | . 1 . . Robot Analysis 1 | . 1 . . Prototype ID Bank 1 | . 1 . . Open Door 1 | . . 1 . Locate Traps 1 | . 1 . . Fabricator Hacks . | . . . . Repair Station Hacks . | . . . . Recycling Unit Hacks 2 | . 2 . . Report Inventory 1 | . 1 . . Retrieve Components 1 | . 1 . . Scanalyzer . | . . . . Garrison Access Hacks . | . . . . Unauthorized Hacks 8 | . 8 . . Terminals 7 | . 7 . . Botnet 2 | . 2 . . Skim 5 | . 5 . . Fabricators . | . . . . Repair Stations . | . . . . Recycling Units 1 | . 1 . . Tunnel 1 | . 1 . . Scanalyzers . | . . . . Garrison Access . | . . . . Data Cores Recovered . | . . . . Used . | . . . . Hacking Detections 8 | . 8 . . Full Trace Events 1 | . 1 . . Feedback Events . | . . . . Feedback Blocked . | . . . . Robot Schematics Acquired . | . . . . Robots Built . | . . . . Authchips . | . . . . Time . | . . . . Total Robot Build Rating . | . . . . Part Schematics Acquired 1 | . 1 . . Parts Built . | . . . . Authchips . | . . . . Time . | . . . . Total Part Build Rating . | . . . . Parts Repaired . | . . . . Time . | . . . . Parts Recycled . | . . . . Recycled Matter . | . . . . Retrieved Matter . | . . . . Retrieved Components 10 | . 10 . . Parts Scanalyzed . | . . . . Part Schematics Acquired . | . . . . Parts Damaged . | . . . . Bothacking | -11 -10 -10 -10 ------------ Run | Yrd Mat Min Sub Used RIF Installer . | . . . . Robots Hacked . | . . . . Non-combat . | . . . . Combat . | . . . . Robot Hacks Applied . | . . . . Relay Couplers Released . | . . . . Fabnet Peak Effective % . | . . . . Robots Rewired . | . . . . Allies Hacked . | . . . . Hacks Repelled . | . . . . Allies | -11 -10 -10 -10 -------- Run | Yrd Mat Min Sub Total Allies . | . . . . Largest Group . | . . . . Highest-Rated Group . | . . . . Highest-Rated Ally . | . . . . Total Orders . | . . . . Ally Attacks . | . . . . Total Damage . | . . . . Kills . | . . . . Allies Corrupted . | . . . . Allies Melted . | . . . . Intel | -11 -10 -10 -10 ------- Run | Yrd Mat Min Sub Active Infowar (turns) 761 | 22 739 . . Seismic 761 | 22 739 . . Robot Analysis Total 1 | . 1 . . Derelict Logs Recovered 3 | . . 1 2 Drone Launches . | . . . . Drone Recoveries . | . . . . Exploration | -11 -10 -10 -10 ------------- Run | Yrd Mat Min Sub Turns Passed 5045 | 88 1348 1574 2035 Spaces Moved 1982 | 58 426 555 943 Core 4 | 4 . . . Treads . | . . . . Legs . | . . . . Wheels 1978 | 54 426 555 943 Hover . | . . . . Flight . | . . . . Fastest Speed 50 | 50 95 215 160 Average Speed 182 | 89 134 219 188 Slowest Speed 230 | 95 215 230 230 Overloaded Moves . | . . . . Propulsion Burnouts . | . . . . Robots Hopped . | . . . . Potential Cave-ins . | . . . . Cave-ins Triggered . | . . . . Exploration Rate (%) 57 | 4 80 93 54 Regions Visited 3 Branch Regions 2 Pre-discovered Areas 4 | . 1 1 2 Known Exits Taken 1 | . . 1 . Unknown Exits Taken 2 | 1 1 . . Scrap Searched 11 | . . 2 9 Spaces Dug . | . . . . Terrain Destroyed 63 | . 43 5 15 Melee . | . . . . Projectile 20 | . . 5 15 AOE 43 | . 43 . . Terrain Rammed . | . . . . Walls Destroyed . | . . . . Machines Disabled . | . . . . Actions | -11 -10 -10 -10 --------- Run | Yrd Mat Min Sub Total 3243 | 80 1137 888 1138 Wait 1051 | 4 654 267 126 Move 1979 | 57 425 554 943 Hop . | . . . . Pick Up 38 | 7 11 12 8 Fast Attach 12 | 7 1 2 2 Attach 4 | . . 2 2 Detach 2 | . 1 1 . Swap 16 | . 3 7 6 Drop 27 | . 7 5 15 Fire 87 | 5 34 12 36 Melee . | . . . . Ram 1 | . 1 . . Kick . | . . . . Crush . | . . . . Escape Stasis . | . . . . Rewire . | . . . . Trap 26 | . . 26 . Miscellaneous . | . . . . Route ------- -11/Scrapyard -10/Materials (discovered 5 exits: *Mat x3 / *Min / Sub) -10/Mines (discovered 3 exits: *Mat x2 / *Sub) -10/Subcaves (discovered 2 exits: [*Mat] / Rec) History --------- Turn | Location | Event 7 | -11/Scrapyard | Discovered new exit (range 15) 89 | -11/Scrapyard | Entered Materials 318 | -10/Materials | Build established: Mutant 861 | -10/Materials | Discovered new exit (range 5) 1131 | -10/Materials | Discovered new exit (range 15) 1226 | -10/Materials | Identified exit to Subcaves 1265 | -10/Materials | Loaded intel: 9 trap records 1307 | -10/Materials | Discovered new exit (range 16) 1333 | -10/Materials | Learned location of 1 exit from Recycling 1336 | -10/Materials | Identified exit to Materials 1348 | -10/Materials | Loaded intel: 11 interactive machine locations 1371 | -10/Materials | Learned 2 Mines zone layouts 1403 | -10/Materials | Loaded intel: 2 recycling unit locations 1437 | -10/Materials | Entered Mines 1450 | -10/Mines | Joined a pair of Derelicts in attacking an 0b10 outpost 1462 | -10/Mines | Learned location of Zion (-7) 2004 | -10/Mines | Received a Rocket Launcher from a helpful Derelict 2073 | -10/Mines | Discovered exit to Materials (range 10) 2280 | -10/Mines | Met a Derelict who couldn't figure out how to use a Trap Extractor 2636 | -10/Mines | A weapon hastily lodged in a ceiling crevice suddenly fell to the ground 3011 | -10/Mines | Entered Subcaves 3074 | -10/Subcaves | Core integrity fell below 50% 3166 | -10/Subcaves | Shifting Twisted Machinery released Mak. Light Armor Plating 3183 | -10/Subcaves | Shifting Twisted Machinery released Battle Cannon 3275 | -10/Subcaves | Disturbed a concealed Subdweller 3559 | -10/Subcaves | Shifting Twisted Machinery released Mak. Leg 3559 | -10/Subcaves | Shifting Twisted Machinery released Riot Gun 3570 | -10/Subcaves | Discovered new exit (range 5) 3635 | -10/Subcaves | A swath of the cavern ceiling suddenly collapsed 4039 | -10/Subcaves | Identified exit to Recycling 4138 | -10/Subcaves | Visited Clippyterm 4143 | -10/Subcaves | Learned location of Extension (-6) 4480 | -10/Subcaves | Met a Zionite searching for "candidates" 4657 | -10/Subcaves | Core integrity fell below 20% 5033 | -10/Subcaves | Disturbed a concealed Subdweller 5034 | -10/Subcaves | Ambushed by Subdweller buried in earth 5046 | -10/Subcaves | Destroyed by 7V-DSL(R) with Subdweller Beam Cannon Last Messages --------------- 04646_ 00-4YI(R) suffers critical hit (Destroy). 04649_ 00-4YI(R) knocked back. 04655_ HV Slug penetrates Twisted Machinery. 04655_ HV Slug penetrates Wall. 04658_ HV Slug penetrates 00-4YI(R). 04658_ 00-4YI(R) suffers critical hit (Destroy). 04658_ 00-4YI(R) destroyed. 04658_ HV Slug penetrates Earth. 04662_ Acquired 5 matter. 04664_ Acquired 30 matter. 05031_ Searching scrap... 05031_ Found Battle Rifle. 05031_ Found Sub. Shrapnel Launcher. 05031_ Found 41 Matter. 05033_ ZR-9KP(R) angrily emerges from the Twisted Machinery. 05033_ Bore Cannon destroyed. 05034_ Mak. Shrapnel Gun destroyed. 05034_ ZR-9KP(R) destroyed. 05035_ 7V-DSL(R): "ARGHSUB!" 05040_ Critical hit (Meltdown: +260). Map ----- +----------------------------------------------------+ | ?????????????????????????????????????????????????? | | ?????????????????????????????????????????????????? | | ?????????????????????????????????????????????????? | | ?????????????????????????????????????????????????? | | ?????????????????????????????????????????????????? | | ?????????????????????????????????????????????????? | | ?????????????????????????????????????????????????? | | ?????????????????????????????????????????????????? | | ?????????????????????????????????????????????????? | | ?????????????????????????????????????????????????? | | ?????????????????????????????????????????????????? | | ?????????????????????????????????????????????????? | | ?????????????????????????????????????????????????? | | ?????????????????????????????????????????????????? | | ?????????????????????????????????????????????????? | | ?????????????????????????????????????????????????? | | ?????????????????????????????????? ??????????????? | | ?????????????????????????????????? ???????????? | | ?????????????????????????????###?# ??????????? | | ????????????????????????????? ## #??????????? | | ????????????????????????????? #??????????? | | ?????????????????????######## #?????????? | | ????????????????????## ;# #???????????? | | ????????????????????# # #????????????? | | ????????????????????# R ! ; #?????????????? | | ????????????????????# @%! ; #??????????????? | | ????????????????????## [ ] ; #?###??????????? | | ????????????????????# ;; #### ##?????????? | | ????????????????????# ;;; ;;# #### ########??? | | ????????????????????### #; ;# # # #??? | | ??????????????????????# < < #???? | | ??????????????????????# ###### | | ??????????????????# ## ## | | ?????????????????# ##### | | ?????????????????## ## #??## | | ??????????????????# ?## #???### | | ??????????????????# #??# ##?????# | | ??????????????????# ##???# ##?????# ## | | ??????????????????## ????? #??????## ## | | ???????????????????##?????## #???????#### ## | | ???????????????????????????## ??????????## ## | | ????????????????????????????####?????????### # | | ?????????????????????????????????????????# ## | | ????????????????????????????????????????## ### | | ????????????????????????????????????????# ### | | ????????????????????????????????????????# # | | ????????????????????????????????????????# # | | ????????????????????????????????????????## ## | | ?????????????????????????????????????????# ## | | ????????????????????????????????????????# # | +----------------------------------------------------+ Best States ------------- Heat Dissipation 25 Energy Generation 12 Energy Capacity 265 Matter Stores 300 Matter Capacity 300 Sight Range 16 Terrain Scan Density 10 Armor Coverage 150 Evasion (%) 41 Recoil Reduction 1 Trap Extractor Capacity 6 Item Schematics ----------------- Hcp. Storage Unit | -10/Materials | Hacked Robot Schematics ------------------ None Fabricated ------------ Nothing Repaired ---------- Nothing Alien Tech Used ----------------- None Achievements -------------- None Challenges ------------ None Game ------ Seed PiercingSystemMatterbank Manual? 0 Play Time 00:21:45 Cumulative 756.4 hours Start 2025.07.29 @ 18:55:32 End 2025.07.29 @ 19:16:34 Sessions 1 Manual Loads 0 Difficulty Rogue Special Mode None Game No. 287 Rogue 283 Adventurer 4 Explorer 0 Win Type - Total 12 Types 7/1/1/1/0/1/0/0/0/1 Lore% 94 Gallery% 89 Achievement% 87 Wizard Run 0 Options --------- Layout 0 ASCII 0 Keyboard 0 Movement Numpad Keybinds 0 Fullscreen 2 Font 18/CogNarrow Map View 76x50 Zoom Use 0% Tactical HUD 1 Map Filters SHIFT_HUE(110) Filters SHIFT_HUE(250) Steam 1 RUN: 592f5eff-f612-4099-a00a-f9160fd8b778